[Event "Fagernes GM Open Autumn 2024"]
[Site "Fagernes"]
[Date "2024.10.06"]
[Round "1.19"]
[White "Bjorkan, Olav"]
[Black "Namitbir Singh Walia"]
[Result "1/2-1/2"]
[ECO "D85"]
[WhiteElo "2022"]
[BlackElo "2351"]
[Annotator "RC"]
[PlyCount "70"]
[EventDate "2024.10.03"]
[EventType "swiss"]
[EventCountry "NOR"]
[SourceTitle "playchess.com"]
[Source "ChessBase"]
[SourceQuality "1"]
[TimeControl "40/6000:2400+30"]

1. d4 {[%emt 0:00:00]} Nf6 {[%emt 0:00:00]} 2. c4 {[%emt 0:00:00]} g6 {[%emt 0:00:00]} 3. Nc3 {[%emt 0:00:00]} d5 {[%emt 0:00:00]} 4. Nf3 {[%emt 0:00:00]} Bg7 {[%emt 0:00:00]} 5. cxd5 {[%emt 0:01:58]} Nxd5 {[%emt 0:00:00]} 6. e4 {[%emt 0:00:00]} Nxc3 {[%emt 0:00:00]} 7. bxc3 {[%emt 0:00:00]} c5 {[%emt 0:00:00]} 8. Bb5+ {[%emt 0:01:33]} Nc6 {[%emt 0:00:00]} 9. Bxc6+ {[%emt 0:01:22]} bxc6 {[%emt 0:00:00]} 10. O-O {[%emt 0:00:00]} O-O {[%emt 0:00:00]} 11. Be3 {[%emt 0:03:54]} Bg4 {[%emt 0:02:03]} 12. Rc1 {[%emt 0:02:19]} Qa5 {[%emt 0:04:03]} 13. Qc2 {[%emt 0:02:27]} Bxf3 {[%emt 0:06:26]} 14. gxf3 {[%emt 0:00:00]} Rad8 {[%emt 0:29:03]} 15. dxc5 {[%emt 0:05:45]} f5 {[%emt 0:07:40]} 16. Qb3+ {[%emt 0:07:32]} Kh8 {[%emt 0:02:57]} 17. Qe6 {[%emt 0:01:12]} Qc7 {[%emt 0:12:16]} 18. Rfd1 {[%emt 0:08:56]} Rf6 {[%emt 0:04:14]} 19. Rxd8+ {[%emt 0:00:45]} Qxd8 {[%emt 0:00:00]} 20. Qb3 {[%emt 0:00:00]} fxe4 {[%emt 0:01:38]} 21. fxe4 {[%emt 0:12:21]} Qc8 {[%emt 0:01:08]} 22. Qd1 {[%emt 0:00:54]} Qe6 {[%emt 0:04:18]} 23. Rb1 {[%emt 0:13:33]} Rf8 {[%emt 0:08:24]} 24. Bd4 {[%emt 0:00:40]} Qxe4 {[%emt 0:06:01]} 25. Bxg7+ {[%emt 0:00:00]} Kxg7 {[%emt 0:00:00]} 26. Qd4+ {[%emt 0:00:00]} Qxd4 {[%emt 0:00:00]} 27. cxd4 {[%emt 0:00:00]} Rd8 {[%emt 0:02:51]} 28. Rb7 {[%emt 0:00:00]} Kf7 {[%emt 0:00:04]} 29. Rxa7 {[%emt 0:00:00]} Rxd4 {[%emt 0:00:00]} 30. Ra6 {[%emt 0:00:00]} h5 {[%emt 0:01:42]} 31. Kg2 {[%emt 0:00:58]} Rc4 {[%emt 0:01:01]} 32. Rxc6 {[%emt 0:00:11]} Ra4 {[%emt 0:00:00]} 33. Rc8 {[%emt 0:06:45]} Rxa2 {[%emt 0:00:00]} 34. c6 {[%emt 0:00:00]} Rc2 {[%emt 0:00:00]} 35. c7 {[%emt 0:00:00]} Ke6 {[%emt 0:00:20]} 1/2-1/2

[Event "Fagernes GM Open Autumn 2024"]
[Site "Fagernes"]
[Date "2024.10.06"]
[Round "1.20"]
[White "Carlsson, Ludvig"]
[Black "Kittilsen, Sigurd"]
[Result "1-0"]
[ECO "B36"]
[WhiteElo "2334"]
[BlackElo "1981"]
[Annotator "RC"]
[PlyCount "59"]
[EventDate "2024.10.03"]
[EventType "swiss"]
[EventCountry "NOR"]
[SourceTitle "playchess.com"]
[Source "ChessBase"]
[SourceQuality "1"]
[TimeControl "40/6000:2400+30"]

1. e4 {[%emt 0:00:00]} c5 {[%emt 0:00:00]} 2. Nf3 {[%emt 0:00:00]} g6 {[%emt 0:00:00]} 3. d4 {[%emt 0:00:00]} cxd4 {[%emt 0:00:00]} 4. Nxd4 {[%emt 0:00:00]} Nc6 {[%emt 0:00:00]} 5. c4 {[%emt 0:00:00]} Nf6 {[%emt 0:00:24]} 6. Nc3 {[%emt 0:00:00]} d6 {[%emt 0:00:16]} 7. Be2 {[%emt 0:00:00]} Nxd4 {[%emt 0:00:04]} 8. Qxd4 {[%emt 0:00:00]} Bg7 {[%emt 0:00:00]} 9. O-O {[%emt 0:00:00]} O-O {[%emt 0:00:00]} 10. Qd3 {[%emt 0:00:00]} Be6 {[%emt 0:02:35]} 11. Be3 {[%emt 0:00:00]} Qa5 {[%emt 0:08:42]} 12. Bd2 {[%emt 0:00:00]} Rfc8 {[%emt 0:02:19]} 13. b3 {[%emt 0:00:00]} Nd7 {[%emt 0:03:35]} 14. f4 {[%emt 0:08:23]} Nc5 {[%emt 0:02:17]} 15. Qe3 {[%emt 0:00:08]} Nd7 {[%emt 0:26:40]} 16. f5 {[%emt 0:01:14]} gxf5 {[%emt 0:01:47]} 17. exf5 {[%emt 0:00:00]} Bxf5 {[%emt 0:00:39]} 18. Nd5 {[%emt 0:02:18]} Qc5 {[%emt 0:03:12]} 19. Nxe7+ {[%emt 0:00:40]} Kf8 {[%emt 0:06:39]} 20. Nxf5 {[%emt 0:07:34]} Bxa1 {[%emt 0:01:02]} 21. Qxc5 {[%emt 0:00:00]} Rxc5 {[%emt 0:00:00]} 22. Rxa1 {[%emt 0:00:00]} Re8 {[%emt 0:08:01]} 23. Ng3 {[%emt 0:00:27]} Rce5 {[%emt 0:01:23]} 24. Bf3 {[%emt 0:01:13]} Nc5 {[%emt 0:00:48]} 25. b4 {[%emt 0:01:50]} Nd3 {[%emt 0:01:18]} 26. Bxb7 {[%emt 0:00:00]} Rb8 {[%emt 0:00:22]} 27. Be4 {[%emt 0:00:57]} Nxb4 {[%emt 0:00:39]} 28. Rb1 {[%emt 0:00:00]} Na6 {[%emt 0:02:50]} 29. Rxb8+ {[%emt 0:00:00]} Nxb8 {[%emt 0:00:00]} 30. Bf4 {[%emt 0:00:00]} 1-0

[Event "Fagernes GM Open Autumn 2024"]
[Site "Fagernes"]
[Date "2024.10.06"]
[Round "1.21"]
[White "Hetland, Even"]
[Black "Laddha, Shubh Jayesh"]
[Result "0-1"]
[ECO "D73"]
[WhiteElo "1970"]
[BlackElo "2308"]
[Annotator "RC"]
[PlyCount "66"]
[EventDate "2024.10.03"]
[EventType "swiss"]
[EventCountry "NOR"]
[SourceTitle "playchess.com"]
[Source "ChessBase"]
[SourceQuality "1"]
[TimeControl "40/6000:2400+30"]

1. Nf3 {[%emt 0:00:00]} d5 {[%emt 0:00:00]} 2. g3 {[%emt 0:00:00]} g6 {[%emt 0:00:00]} 3. Bg2 {[%emt 0:00:00]} Bg7 {[%emt 0:00:00]} 4. d4 {[%emt 0:00:00]} c6 {[%emt 0:00:00]} 5. O-O {[%emt 0:00:00]} Nf6 {[%emt 0:00:00]} 6. c4 {[%emt 0:00:00]} dxc4 {[%emt 0:00:00]} 7. Ne5 {[%emt 0:11:19]} Ng4 {[%emt 0:00:00]} 8. Bf4 {[%emt 0:09:43]} Nxe5 {[%emt 0:05:21]} 9. Bxe5 {[%emt 0:02:56]} Bxe5 {[%emt 0:02:22]} 10. dxe5 {[%emt 0:00:00]} Qxd1 {[%emt 0:02:25]} 11. Rxd1 {[%emt 0:00:00]} Be6 {[%emt 0:00:44]} 12. f4 {[%emt 0:06:56]} Nd7 {[%emt 0:05:16]} 13. Na3 {[%emt 0:03:02]} O-O-O {[%emt 0:05:29]} 14. Nc2 {[%emt 0:05:49]} Nc5 {[%emt 0:14:28]} 15. Nd4 {[%emt 0:07:33]} Bd5 {[%emt 0:04:39]} 16. Rac1 {[%emt 0:09:11]} Ne6 {[%emt 0:10:34]} 17. Bh3 {[%emt 0:06:04]} Kc7 {[%emt 0:03:43]} 18. Bxe6 {[%emt 0:08:51]} Bxe6 {[%emt 0:00:00]} 19. Nxe6+ {[%emt 0:00:00]} fxe6 {[%emt 0:00:00]} 20. Kf2 {[%emt 0:00:00]} b5 {[%emt 0:00:40]} 21. e4 {[%emt 0:02:25]} Kb6 {[%emt 0:03:43]} 22. g4 {[%emt 0:03:18]} Kc5 {[%emt 0:03:14]} 23. Ke3 {[%emt 0:01:30]} b4 {[%emt 0:03:57]} 24. f5 {[%emt 0:02:43]} gxf5 {[%emt 0:02:23]} 25. exf5 {[%emt 0:01:25]} exf5 {[%emt 0:00:00]} 26. gxf5 {[%emt 0:00:00]} Rd5 {[%emt 0:01:23]} 27. Kf4 {[%emt 0:02:01]} Rhd8 {[%emt 0:01:09]} 28. Re1 {[%emt 0:00:24]} Rd2 {[%emt 0:08:50]} 29. a3 {[%emt 0:05:18]} bxa3 {[%emt 0:02:17]} 30. bxa3 {[%emt 0:00:00]} Rf2+ {[%emt 0:00:00]} 31. Kg4 {[%emt 0:00:00]} Rg8+ {[%emt 0:00:06]} 32. Kh3 {[%emt 0:00:00]} Rxf5 {[%emt 0:00:00]} 33. Re4 {[%emt 0:00:00]} Rh5+ {[%emt 0:00:00]} 0-1

[Event "Fagernes GM Open Autumn 2024"]
[Site "Fagernes"]
[Date "2024.10.06"]
[Round "1.22"]
[White "Eliseev, Sergey"]
[Black "Sorgjerd, Jan"]
[Result "1-0"]
[ECO "B99"]
[WhiteElo "2276"]
[BlackElo "1966"]
[Annotator "RC"]
[PlyCount "105"]
[EventDate "2024.10.03"]
[EventType "swiss"]
[EventCountry "NOR"]
[SourceTitle "playchess.com"]
[Source "ChessBase"]
[SourceQuality "1"]
[TimeControl "40/6000:2400+30"]

1. e4 {[%emt 0:00:00]} c5 {[%emt 0:00:00]} 2. Nf3 {[%emt 0:00:00]} d6 {[%emt 0:00:00]} 3. d4 {[%emt 0:00:00]} cxd4 {[%emt 0:00:00]} 4. Nxd4 {[%emt 0:00:00]} Nf6 {[%emt 0:00:00]} 5. Nc3 {[%emt 0:00:00]} a6 {[%emt 0:00:00]} 6. Bg5 {[%emt 0:00:00]} e6 {[%emt 0:00:00]} 7. f4 {[%emt 0:00:00]} Be7 {[%emt 0:00:00]} 8. Qf3 {[%emt 0:00:00]} Qc7 {[%emt 0:00:00]} 9. O-O-O {[%emt 0:00:00]} Nbd7 {[%emt 0:00:00]} 10. g4 {[%emt 0:00:00]} b5 {[%emt 0:00:00]} 11. Bxf6 {[%emt 0:00:00]} Nxf6 {[%emt 0:00:00]} 12. g5 {[%emt 0:00:00]} Nd7 {[%emt 0:00:00]} 13. f5 {[%emt 0:00:00]} Nc5 {[%emt 0:00:47]} 14. f6 {[%emt 0:00:00]} gxf6 {[%emt 0:00:00]} 15. gxf6 {[%emt 0:00:00]} Bf8 {[%emt 0:00:00]} 16. Rg1 {[%emt 0:00:00]} Bd7 {[%emt 0:10:33]} 17. Bh3 {[%emt 0:12:40]} b4 {[%emt 0:17:04]} 18. Nce2 {[%emt 0:48:13]} O-O-O {[%emt 0:10:12]} 19. Kb1 {[%emt 0:11:25]} Qb7 {[%emt 0:10:22]} 20. e5 {[%emt 0:00:46]} Qxf3 {[%emt 0:10:28]} 21. Nxf3 {[%emt 0:00:00]} Ne4 {[%emt 0:00:46]} 22. Rd4 {[%emt 0:06:33]} d5 {[%emt 0:00:21]} 23. Ng5 {[%emt 0:00:55]} Nxg5 {[%emt 0:02:15]} 24. Rxg5 {[%emt 0:00:28]} Bb5 {[%emt 0:04:52]} 25. Nc1 {[%emt 0:03:59]} a5 {[%emt 0:06:35]} 26. Rh4 {[%emt 0:03:21]} h6 {[%emt 0:00:24]} 27. Rg3 {[%emt 0:00:46]} Kc7 {[%emt 0:07:03]} 28. Nb3 {[%emt 0:00:00]} Kb6 {[%emt 0:00:52]} 29. Nd4 {[%emt 0:00:00]} Ba6 {[%emt 0:03:07]} 30. Bg4 {[%emt 0:01:14]} Bc5 {[%emt 0:04:38]} 31. Bh5 {[%emt 0:00:08]} Rhf8 {[%emt 0:00:27]} 32. Rg7 {[%emt 0:00:08]} Bxd4 {[%emt 0:02:08]} 33. Rxd4 {[%emt 0:00:00]} Kc5 {[%emt 0:00:00]} 34. Rdg4 {[%emt 0:06:00]} d4 {[%emt 0:03:03]} 35. Rxf7 {[%emt 0:00:50]} Be2 {[%emt 0:02:56]} 36. Rxf8 {[%emt 0:00:00]} Rxf8 {[%emt 0:00:00]} 37. Rh4 {[%emt 0:00:00]} Bxh5 {[%emt 0:00:20]} 38. Rxh5 {[%emt 0:00:00]} Kd5 {[%emt 0:00:00]} 39. Kc1 {[%emt 0:00:00]} Rf7 {[%emt 0:00:00]} 40. Kd2 {[%emt 0:00:00]} Ke4 {[%emt 0:00:00]} 41. h4 {[%emt 0:13:32]} Rh7 {[%emt 0:07:38]} 42. Ke2 {[%emt 0:02:36]} Rc7 {[%emt 0:01:24]} 43. Kd2 {[%emt 0:01:00]} Rh7 {[%emt 0:00:11]} 44. b3 {[%emt 0:00:25]} Rf7 {[%emt 0:02:08]} 45. Rxh6 {[%emt 0:00:26]} Kxe5 {[%emt 0:00:14]} 46. Kd3 {[%emt 0:01:31]} Rc7 {[%emt 0:02:18]} 47. h5 {[%emt 0:03:35]} Rc3+ {[%emt 0:02:00]} 48. Kd2 {[%emt 0:01:18]} Rh3 {[%emt 0:07:50]} 49. f7 {[%emt 0:01:49]} Rf3 {[%emt 0:00:09]} 50. Rh7 {[%emt 0:00:02]} Kd6 {[%emt 0:00:19]} 51. h6 {[%emt 0:01:44]} Ke7 {[%emt 0:02:05]} 52. Rg7 {[%emt 0:00:13]} Rxf7 {[%emt 0:00:31]} 53. h7 {[%emt 0:00:15]} 1-0

[Event "Fagernes GM Open Autumn 2024"]
[Site "Fagernes"]
[Date "2024.10.06"]
[Round "1.23"]
[White "Stromhaug, Kristoffer Wang"]
[Black "Oksendal, Martin"]
[Result "0-1"]
[ECO "B90"]
[WhiteElo "1960"]
[BlackElo "2271"]
[Annotator "RC"]
[PlyCount "50"]
[EventDate "2024.10.03"]
[EventType "swiss"]
[EventCountry "NOR"]
[SourceTitle "playchess.com"]
[Source "ChessBase"]
[SourceQuality "1"]
[TimeControl "40/6000:2400+30"]

1. e4 {[%emt 0:00:00]} c5 {[%emt 0:00:00]} 2. Nf3 {[%emt 0:00:00]} d6 {[%emt 0:00:00]} 3. d4 {[%emt 0:00:00]} cxd4 {[%emt 0:00:00]} 4. Nxd4 {[%emt 0:00:00]} Nf6 {[%emt 0:00:00]} 5. Nc3 {[%emt 0:00:00]} a6 {[%emt 0:00:00]} 6. h3 {[%emt 0:00:00]} e5 {[%emt 0:00:00]} 7. Nb3 {[%emt 0:00:00]} Be6 {[%emt 0:00:00]} 8. f4 {[%emt 0:00:00]} b5 {[%emt 0:00:00]} 9. f5 {[%emt 0:04:22]} Bc8 {[%emt 0:00:00]} 10. Qf3 {[%emt 0:00:37]} Bb7 {[%emt 0:01:26]} 11. a4 {[%emt 0:01:13]} Nxe4 {[%emt 0:07:47]} 12. axb5 {[%emt 0:20:34]} Qh4+ {[%emt 0:02:35]} 13. g3 {[%emt 0:00:00]} Qxg3+ {[%emt 0:00:23]} 14. Qxg3 {[%emt 0:00:00]} Nxg3 {[%emt 0:00:00]} 15. Rg1 {[%emt 0:00:00]} Nxf1 {[%emt 0:00:00]} 16. Rxf1 {[%emt 0:03:59]} axb5 {[%emt 0:03:30]} 17. Rxa8 {[%emt 0:01:46]} Bxa8 {[%emt 0:00:00]} 18. Nxb5 {[%emt 0:00:58]} Bg2 {[%emt 0:03:02]} 19. Rf2 {[%emt 0:02:43]} Bxh3 {[%emt 0:00:16]} 20. Nc7+ {[%emt 0:00:00]} Kd7 {[%emt 0:00:39]} 21. Nd5 {[%emt 0:00:00]} Be7 {[%emt 0:04:02]} 22. Nxe7 {[%emt 0:01:34]} Kxe7 {[%emt 0:00:00]} 23. Nd2 {[%emt 0:00:00]} Nc6 {[%emt 0:06:38]} 24. c3 {[%emt 0:00:08]} d5 {[%emt 0:03:07]} 25. Nb3 {[%emt 0:02:31]} h5 {[%emt 0:02:42]} 0-1

[Event "Fagernes GM Open Autumn 2024"]
[Site "Fagernes"]
[Date "2024.10.06"]
[Round "1.24"]
[White "Sieber, Fiona"]
[Black "Rustan, Elias Buschmann"]
[Result "1-0"]
[ECO "B12"]
[WhiteElo "2264"]
[BlackElo "1941"]
[Annotator "RC"]
[PlyCount "71"]
[EventDate "2024.10.03"]
[EventType "swiss"]
[EventCountry "NOR"]
[SourceTitle "playchess.com"]
[Source "ChessBase"]
[SourceQuality "1"]
[TimeControl "40/6000:2400+30"]

1. e4 {[%emt 0:00:00]} c6 {[%emt 0:00:00]} 2. d4 {[%emt 0:00:00]} d5 {[%emt 0:00:00]} 3. e5 {[%emt 0:00:00]} c5 {[%emt 0:00:00]} 4. dxc5 {[%emt 0:00:00]} e6 {[%emt 0:00:00]} 5. a3 {[%emt 0:00:00]} Bxc5 {[%emt 0:00:00]} 6. Qg4 {[%emt 0:00:00]} Ne7 {[%emt 0:01:16]} 7. Nf3 {[%emt 0:00:00]} Ng6 {[%emt 0:09:54]} 8. Bd3 {[%emt 0:00:00]} Nd7 {[%emt 0:03:44]} 9. O-O {[%emt 0:15:18]} O-O {[%emt 0:02:49]} 10. Qh5 {[%emt 0:01:30]} f6 {[%emt 0:18:36]} 11. b4 {[%emt 0:17:18]} Be7 {[%emt 0:03:24]} 12. Bxg6 {[%emt 0:02:43]} hxg6 {[%emt 0:00:00]} 13. Qxg6 {[%emt 0:00:00]} Nxe5 {[%emt 0:00:00]} 14. Nxe5 {[%emt 0:00:00]} fxe5 {[%emt 0:00:00]} 15. Bb2 {[%emt 0:00:32]} Bf6 {[%emt 0:02:44]} 16. Nd2 {[%emt 0:00:17]} Bd7 {[%emt 0:06:22]} 17. Nf3 {[%emt 0:09:56]} Qc7 {[%emt 0:02:53]} 18. Rfe1 {[%emt 0:09:08]} d4 {[%emt 0:11:16]} 19. Rac1 {[%emt 0:07:09]} Bc6 {[%emt 0:03:24]} 20. Nxe5 {[%emt 0:03:54]} Qd6 {[%emt 0:08:11]} 21. Nxc6 {[%emt 0:02:10]} bxc6 {[%emt 0:05:34]} 22. Rcd1 {[%emt 0:11:47]} e5 {[%emt 0:01:37]} 23. c3 {[%emt 0:03:45]} c5 {[%emt 0:00:50]} 24. Qd3 {[%emt 0:01:53]} cxb4 {[%emt 0:07:22]} 25. Qc4+ {[%emt 0:01:50]} Kh8 {[%emt 0:00:34]} 26. Rd3 {[%emt 0:02:29]} g6 {[%emt 0:00:00]} 27. cxd4 {[%emt 0:02:27]} exd4 {[%emt 0:00:00]} 28. Rxd4 {[%emt 0:02:34]} Bxd4 {[%emt 0:02:29]} 29. Bxd4+ {[%emt 0:00:00]} Kh7 {[%emt 0:00:08]} 30. Be5 {[%emt 0:01:46]} Qd2 {[%emt 0:04:07]} 31. Qc7+ {[%emt 0:00:16]} Kh6 {[%emt 0:00:00]} 32. Bg7+ {[%emt 0:00:00]} Kh5 {[%emt 0:00:00]} 33. g4+ {[%emt 0:00:01]} Kxg4 {[%emt 0:00:35]} 34. Qg3+ {[%emt 0:00:00]} Kh5 {[%emt 0:00:00]} 35. Qh3+ {[%emt 0:00:00]} Kg5 {[%emt 0:00:00]} 36. Bh6+ {[%emt 0:00:00]} 1-0

[Event "Fagernes GM Open Autumn 2024"]
[Site "Fagernes"]
[Date "2024.10.06"]
[Round "1.25"]
[White "Simonsen, David Mindestrommen"]
[Black "Fiskaaen, Martin Holten"]
[Result "0-1"]
[ECO "C02"]
[WhiteElo "1930"]
[BlackElo "2259"]
[Annotator "ChessBase"]
[PlyCount "44"]
[EventDate "2024.10.03"]
[EventType "swiss"]
[EventCountry "NOR"]
[SourceTitle "playchess.com"]
[Source "ChessBase"]
[SourceQuality "1"]
[TimeControl "40/6000:2400+30"]

1. e4 {[%emt 0:00:00]} e6 {[%emt 0:00:00]} 2. d4 {[%emt 0:00:00]} d5 {[%emt 0:00:00]} 3. e5 {[%emt 0:00:52]} c5 {[%emt 0:00:00]} 4. c3 {[%emt 0:00:00]} Nc6 {[%emt 0:00:00]} 5. Nf3 {[%emt 0:00:00]} Bd7 {[%emt 0:00:00]} 6. Be2 {[%emt 0:00:00]} f6 {[%emt 0:00:00]} 7. O-O {[%emt 0:04:06]} fxe5 {[%emt 0:00:00]} 8. dxe5 {[%emt 0:01:20]} Nh6 {[%emt 0:03:11]} 9. Bd3 {[%emt 0:11:44]} Qc7 {[%emt 0:06:41]} 10. Bf4 {[%emt 0:01:56]} Be7 {[%emt 0:04:36]} 11. a3 {[%emt 0:13:29]} Nf7 {[%emt 0:04:54]} 12. h4 {[%emt 0:01:28]} O-O-O {[%emt 0:03:09]} 13. b4 {[%emt 0:01:48]} c4 {[%emt 0:04:19]} 14. Bc2 {[%emt 0:00:30]} Rdf8 {[%emt 0:04:43]} 15. Re1 {[%emt 0:01:26]} Nh6 {[%emt 0:03:03]} 16. Qd2 {[%emt 0:14:48]} Nf5 {[%emt 0:03:52]} 17. g3 {[%emt 0:03:19]} Be8 {[%emt 0:05:39]} 18. a4 {[%emt 0:10:36]} Bh5 {[%emt 0:01:49]} 19. Ng5 {[%emt 0:02:21]} Bxg5 {[%emt 0:08:27]} 20. hxg5 {[%emt 0:00:00]} h6 {[%emt 0:00:00]} 21. Na3 {[%emt 0:00:43]} hxg5 {[%emt 0:03:08]} 22. Nb5 {[%emt 0:00:02]} Bf3 {[%emt 0:01:04]} 0-1

[Event "Fagernes GM Open Autumn 2024"]
[Site "Fagernes"]
[Date "2024.10.06"]
[Round "1.26"]
[White "Oye-Stromberg, Alexander"]
[Black "Juodziukynas, Aidas"]
[Result "1-0"]
[ECO "B90"]
[WhiteElo "2248"]
[BlackElo "1917"]
[Annotator "RC"]
[PlyCount "71"]
[EventDate "2024.10.03"]
[EventType "swiss"]
[EventCountry "NOR"]
[SourceTitle "playchess.com"]
[Source "ChessBase"]
[SourceQuality "1"]
[TimeControl "40/6000:2400+30"]

1. e4 {[%emt 0:00:00]} c5 {[%emt 0:00:00]} 2. Nf3 {[%emt 0:00:00]} d6 {[%emt 0:00:00]} 3. d4 {[%emt 0:00:00]} cxd4 {[%emt 0:00:00]} 4. Nxd4 {[%emt 0:00:00]} Nf6 {[%emt 0:00:00]} 5. Nc3 {[%emt 0:00:00]} a6 {[%emt 0:00:00]} 6. h4 {[%emt 0:00:02]} Nbd7 {[%emt 0:01:46]} 7. g3 {[%emt 0:06:17]} b6 {[%emt 0:03:02]} 8. Bg2 {[%emt 0:02:59]} Bb7 {[%emt 0:00:00]} 9. g4 {[%emt 0:04:38]} h6 {[%emt 0:06:42]} 10. g5 {[%emt 0:00:59]} hxg5 {[%emt 0:02:21]} 11. hxg5 {[%emt 0:00:00]} Rxh1+ {[%emt 0:00:00]} 12. Bxh1 {[%emt 0:00:00]} Ng8 {[%emt 0:00:32]} 13. Qh5 {[%emt 0:02:52]} e5 {[%emt 0:00:35]} 14. Ne6 {[%emt 0:07:44]} Qc8 {[%emt 0:06:25]} 15. Qh7 {[%emt 0:06:30]} fxe6 {[%emt 0:06:14]} 16. Qxg8 {[%emt 0:00:00]} Qc4 {[%emt 0:01:14]} 17. Bf3 {[%emt 0:00:00]} O-O-O {[%emt 0:02:14]} 18. Be2 {[%emt 0:00:00]} Qd4 {[%emt 0:03:38]} 19. a3 {[%emt 0:00:24]} Qc5 {[%emt 0:03:32]} 20. Qxe6 {[%emt 0:00:27]} Kb8 {[%emt 0:00:00]} 21. Qf7 {[%emt 0:01:54]} Qc6 {[%emt 0:02:44]} 22. Be3 {[%emt 0:02:38]} Nc5 {[%emt 0:00:23]} 23. Bc4 {[%emt 0:00:45]} Qd7 {[%emt 0:02:43]} 24. Qxd7 {[%emt 0:00:00]} Rxd7 {[%emt 0:00:00]} 25. Bd5 {[%emt 0:04:24]} Bxd5 {[%emt 0:00:16]} 26. exd5 {[%emt 0:01:12]} Rf7 {[%emt 0:00:26]} 27. Ke2 {[%emt 0:00:29]} Kb7 {[%emt 0:00:58]} 28. b4 {[%emt 0:01:09]} Nd7 {[%emt 0:00:00]} 29. Kd3 {[%emt 0:01:02]} Be7 {[%emt 0:00:31]} 30. Ne4 {[%emt 0:00:12]} Nf8 {[%emt 0:00:04]} 31. c4 {[%emt 0:01:51]} Ng6 {[%emt 0:00:38]} 32. c5 {[%emt 0:02:46]} bxc5 {[%emt 0:00:51]} 33. bxc5 {[%emt 0:00:00]} dxc5 {[%emt 0:00:00]} 34. Rb1+ {[%emt 0:05:52]} Kc7 {[%emt 0:00:00]} 35. d6+ {[%emt 0:00:25]} Bxd6 {[%emt 0:00:00]} 36. Rb7+ {[%emt 0:01:45]} 1-0

[Event "Fagernes GM Open Autumn 2024"]
[Site "Fagernes"]
[Date "2024.10.06"]
[Round "1.27"]
[White "Lien, Sebastian"]
[Black "Bhagat Kush"]
[Result "0-1"]
[ECO "E97"]
[WhiteElo "1911"]
[BlackElo "2245"]
[Annotator "RC"]
[PlyCount "84"]
[EventDate "2024.10.03"]
[EventType "swiss"]
[EventCountry "NOR"]
[SourceTitle "playchess.com"]
[Source "ChessBase"]
[SourceQuality "1"]
[TimeControl "40/6000:2400+30"]

1. d4 {[%emt 0:00:00]} Nf6 {[%emt 0:02:46]} 2. c4 {[%emt 0:00:00]} g6 {[%emt 0:00:00]} 3. Nc3 {[%emt 0:00:00]} Bg7 {[%emt 0:00:00]} 4. e4 {[%emt 0:00:00]} d6 {[%emt 0:00:00]} 5. Nf3 {[%emt 0:00:00]} O-O {[%emt 0:00:00]} 6. Be2 {[%emt 0:00:00]} e5 {[%emt 0:00:00]} 7. Be3 {[%emt 0:00:00]} Ng4 {[%emt 0:03:42]} 8. Bg5 {[%emt 0:00:00]} f6 {[%emt 0:00:00]} 9. Bc1 {[%emt 0:00:00]} Nc6 {[%emt 0:04:38]} 10. O-O {[%emt 0:00:33]} Nh6 {[%emt 0:05:57]} 11. d5 {[%emt 0:01:05]} Ne7 {[%emt 0:02:04]} 12. b4 {[%emt 0:00:00]} a5 {[%emt 0:03:19]} 13. b5 {[%emt 0:00:00]} b6 {[%emt 0:01:32]} 14. g3 {[%emt 0:04:26]} Nf7 {[%emt 0:00:34]} 15. Be3 {[%emt 0:18:08]} Bh3 {[%emt 0:33:38]} 16. Re1 {[%emt 0:02:54]} f5 {[%emt 0:00:57]} 17. Qd2 {[%emt 0:20:42]} Bg4 {[%emt 0:13:11]} 18. Ng5 {[%emt 0:08:44]} Nxg5 {[%emt 0:00:19]} 19. Bxg5 {[%emt 0:01:59]} Bxe2 {[%emt 0:00:03]} 20. Nxe2 {[%emt 0:03:45]} Qd7 {[%emt 0:00:13]} 21. Bxe7 {[%emt 0:06:31]} Qxe7 {[%emt 0:00:00]} 22. exf5 {[%emt 0:00:23]} Qf6 {[%emt 0:02:04]} 23. g4 {[%emt 0:10:03]} gxf5 {[%emt 0:00:21]} 24. gxf5 {[%emt 0:00:06]} Qxf5 {[%emt 0:00:51]} 25. Ng3 {[%emt 0:00:00]} Qh3 {[%emt 0:00:32]} 26. Re4 {[%emt 0:09:45]} Rf6 {[%emt 0:01:46]} 27. Rf1 {[%emt 0:01:46]} Raf8 {[%emt 0:00:53]} 28. Qe2 {[%emt 0:02:32]} Rf4 {[%emt 0:00:00]} 29. f3 {[%emt 0:00:20]} Qh6 {[%emt 0:14:12]} 30. Rf2 {[%emt 0:01:25]} Qg6 {[%emt 0:00:29]} 31. Kh1 {[%emt 0:00:27]} Qf7 {[%emt 0:00:38]} 32. Kg2 {[%emt 0:00:00]} Rf6 {[%emt 0:00:08]} 33. Rg4 {[%emt 0:00:00]} Kh8 {[%emt 0:01:33]} 34. Ne4 {[%emt 0:02:11]} Rf4 {[%emt 0:00:00]} 35. Ng5 {[%emt 0:00:16]} Qh5 {[%emt 0:00:00]} 36. Ne6 {[%emt 0:00:46]} Rxg4+ {[%emt 0:00:00]} 37. fxg4 {[%emt 0:00:00]} Rxf2+ {[%emt 0:00:00]} 38. Qxf2 {[%emt 0:00:00]} Qxg4+ {[%emt 0:00:00]} 39. Qg3 {[%emt 0:00:00]} Qe2+ {[%emt 0:00:00]} 40. Kh3 {[%emt 0:00:41]} Bf6 {[%emt 0:00:00]} 41. Nxc7 {[%emt 0:40:45]} Qxc4 {[%emt 0:40:53]} 42. Ne8 {[%emt 0:00:01]} Qc8+ {[%emt 0:00:01]} 0-1